Cogmind - Beta 13 @@@ ROGUE MODE // 2024.03.26 @ 10:43:34 Player: TheLargestBoi Result: Self-destructed Performance ------------- Evolutions (1) 500 Regions Visited (2) 400 Robots Destroyed (26) 130 Value Destroyed (630) 630 Prototype IDs (4) 80 Alien Tech Used (0) 0 Bonus (0) 0 TOTAL SCORE: 1740 Bonus ------- None Cogmind --------- Core Integrity 295/400 Matter 277/300 Energy 86/100 System Corruption 1% Temperature Danger (437) Movement Walking (120) Location -9/Materials Parts ------- > --- POWER (1) -------- (None) > --- PROPULSION (3) --- Aluminum Leg Aluminum Leg Aluminum Leg > --- UTILITY (3) ------ Heat Sink Medium Storage Unit Hacking Suite > --- WEAPON (2) ------- Advanced Beam Cannon Advanced Beam Cannon > --- INVENTORY (10) --- Ion Engine Aluminum Leg ECM Suite Medium Armor Plating Hacking Suite Advanced Beam Cannon Grenade Launcher Datajack Peak State ------------ > --- POWER ------------ Improved Ion Engine > --- PROPULSION ------- Aluminum Leg Aluminum Leg Aluminum Leg > --- UTILITY ---------- Heat Sink Small Storage Unit Improved Terrain Scanner > --- WEAPON ----------- Advanced Beam Cannon Advanced Beam Cannon > --- INVENTORY -------- Ion Engine Aluminum Leg Visual Processing Unit ECM Suite Medium Laser Advanced Beam Cannon Grenade Launcher Mining Laser [Rating: 17] Favorites ----------- Power Improved Ion Engine Engine Improved Ion Engine Propulsion Aluminum Leg Leg Aluminum Leg Utility Small Storage Unit Device Heat Sink Storage Small Storage Unit Hackware Hacking Suite Protection Light Armor Plating Weapon Advanced Beam Cannon Energy Gun Small Laser Energy Cannon Advanced Beam Cannon Special Weapon Mining Laser Build | -11 -10 -9 ------- Run | Yrd Mat Mat Slots Evolved 2 | . . 2 Power . | . . . Propulsion 1 | . . 1 Utility 1 | . . 1 Weapon . | . . . Parts Attached 35 | 8 2 25 Power 3 | 2 . 1 Engine 3 | 2 . 1 Core . | . . . Reactor . | . . . Propulsion 8 | 2 . 6 Treads . | . . . Leg 8 | 2 . 6 Wheel . | . . . Hover . | . . . Flight . | . . . Utility 10 | 2 . 8 Device 5 | 1 . 4 Storage 3 | 1 . 2 Processor . | . . . Hackware 1 | . . 1 Protection 1 | . . 1 Artifact . | . . . Weapon 14 | 2 2 10 Energy Gun 5 | 2 1 2 Energy Cannon 5 | . . 5 Ballistic Gun . | . . . Ballistic Cannon . | . . . Launcher . | . . . Special Weapon 4 | . 1 3 Impact Weapon . | . . . Slashing Weapon . | . . . Piercing Weapon . | . . . Special Melee Weapon . | . . . Unidentified Prototypes . | . . . Parts Lost 5 | . . 5 Power 2 | . . 2 Propulsion 1 | . . 1 Utility 1 | . . 1 Weapon 1 | . . 1 Highest Loss Streak 2 | . . 2 To Critical Strikes . | . . . Average Slot Usage (%) 98 | . 100 98 Engine 11 | . 14 10 Leg 31 | . 28 32 Device 18 | . 14 19 Storage 11 | . 14 11 Energy Gun 9 | . 27 3 Energy Cannon 13 | . . 17 Naked Turns . | . . . Heaviest Build 26 | 14 14 26 Greatest Support 30 | 20 20 30 Greatest Overweight (x) . | . . . Average Overweight (x) . | . . . Largest Inventory Capacity 10 | 8 8 10 Average Capacity 8 | 6 8 8 Most Carried 8 | 3 6 8 Average Carried 6 | 1 4 7 Final Capacity 10 | 8 8 10 Final Carried 8 | 3 6 8 Class Distribution -------------------- 68% | Scavenger-Mutant 31% | Mutant Dominant Class ---------------- Mutant | -10/Materials Scavenger-Mutant | -9/Materials Resources | -11 -10 -9 ----------- Run | Yrd Mat Mat Matter Collected 570 | 277 20 273 Remotely . | . . . Salvage Created 849 | 48 158 643 Parts 50 | 5 13 32 Haulers Intercepted 2 | . 1 1 Recyclers Shooed 3 | . 1 2 Parts Field Recycled . | . . . Retrieved Matter . | . . . Parts Self-Destructed . | . . . Prevented . | . . . Kills | -11 -10 -9 ------- Run | Yrd Mat Mat Combat Hostiles Destroyed 16 | . 4 12 Guns 10 | . 4 6 Cannons 5 | . . 5 Classes Destroyed 8 | 1 4 3 Worker 1 | . . 1 Tunneler 2 | 2 . . Hauler 2 | . 1 1 Operator 2 | . . 2 Watcher 3 | . 1 2 Swarmer 3 | . 3 . Grunt 10 | . 1 9 Sentry 3 | . . 3 Best Kill Streak 3 | 2 3 3 Combat Bots Only 3 | . 3 3 Max Kills in Single Turn 1 | 1 1 1 Gunslinging . | . . . Exploded . | . . . Melee . | . . . Uniques/NPCs Destroyed . | . . . Combat | -11 -10 -9 -------- Run | Yrd Mat Mat Hostile Shots Fired 97 | . 7 90 Missed 25 | . 2 23 Damage Taken 879 | . 46 833 Core 105 | . . 105 Absorbed by Shields . | . . . Core Remaining (%) 100 | 100 100 . Volleys Fired 81 | 4 20 57 Largest 2 | 2 2 2 Hottest 150 | 90 150 136 Shots Fired 154 | 8 39 107 Gun 100 | 8 37 55 Cannon 49 | . . 49 Launcher . | . . . Special 5 | . 2 3 Kinetic . | . . . Thermal 154 | 8 39 107 Explosive . | . . . Electromagnetic . | . . . Robot Hit Streak 15 | 2 15 15 Robot Miss Streak 2 | 1 2 2 Penetration Max . | . . . Secondary Targets . | . . . Shots Hit Robots 99 | 5 26 68 Core Hits 40 | 5 9 26 Critical Kills 2 | . . 2 Critical Parts Destroyed . | . . . Critical Strikes 5 | . 2 3 Burn 3 | . 2 1 Meltdown 2 | . . 2 Melee Attacks . | . . . Impact . | . . . Slashing . | . . . Piercing . | . . . Sneak Attacks . | . . . Combat Hostiles . | . . . Follow-up Attacks . | . . . Damage Inflicted 1618 | 69 320 1229 Guns 1038 | 60 320 658 Cannons 546 | . . 546 Explosions . | . . . Melee . | . . . Ramming 34 | 9 . 25 Kinetic . | . . . Thermal 1584 | 60 320 1204 Explosive . | . . . Electromagnetic . | . . . Impact . | . . . Slashing . | . . . Piercing . | . . . Highest Corruption 1 | . . 1 Average Corruption 1 | . . 1 Corruption Purged . | . . . Corruption Blocked . | . . . Overload Shots . | . . . Overflow Damage 22 | . . 22 Projectiles 22 | . . 22 Explosions . | . . . Melee . | . . . Knockbacks 1 | . . 1 Impact 1 | . . 1 Kinetic . | . . . Secondary . | . . . Self-Inflicted Damage . | . . . Shots . | . . . Rammed . | . . . Targets Rammed 6 | 2 . 4 Kicked 6 | 2 . 4 Crushed . | . . . Highest Temperature 437 | 60 120 437 Average Temperature 83 | 24 45 104 Received Heat Transfer 408 | . 6 402 Effects 1 | . . 1 Matter Decay 1 | . . 1 Siege Activations . | . . . Robots Corrupted . | . . . Combat Hostiles . | . . . Parts Fried . | . . . Impact Corruptions . | . . . Robots Melted 3 | . . 3 Combat Hostiles 1 | . . 1 Parts Melted 14 | . 5 9 Heat Transferred 3786 | 149 1003 2634 Parts Sabotaged . | . . . Parts Stolen . | . . . Parts Stripped . | . . . Power Chain Reactions . | . . . Alert | -11 -10 -9 ------- Run | Yrd Mat Mat Peak Influence 204 | 10 135 204 Initial 7 | . 6 7 Average 59 | 2 76 58 Maximum Alert Level 1 | . . 1 Low Security (%) 96 | 100 100 94 Level 1 3 | . . 5 Level 2 . | . . . Level 3 . | . . . Level 4 . | . . . Level 5 . | . . . High Security . | . . . Max Security . | . . . Squads Dispatched 3 | . 1 2 Investigation . | . . . Extermination . | . . . Reinforcement 3 | . 1 2 Assault . | . . . Garrison . | . . . Intercept . | . . . Searches Triggered . | . . . Construction Impeded . | . . . Haulers Reinforced . | . . . Active Scanning Responses . | . . . Cargo Convoy Interrupts . | . . . Stealth | -11 -10 -9 --------- Run | Yrd Mat Mat Distress Signals 6 | . 2 4 Communications Jammed . | . . . Distress Signals . | . . . Times Spotted 42 | . 9 33 Peak Tracking Total 7 | . 2 7 Tactical Retreats 2 | . . 2 Traps | -11 -10 -9 ------- Run | Yrd Mat Mat Traps Triggered . | . . . Indirectly . | . . . Trap Hack Attempts . | . . . Triggered . | . . . Disarmed . | . . . Reprogrammed . | . . . Reused . | . . . Traps Extracted . | . . . Installed . | . . . Triggered . | . . . Machines | -11 -10 -9 ---------- Run | Yrd Mat Mat Machines Disabled . | . . . Max in Single Turn . | . . . Machines Repaired . | . . . Machines Dismantled . | . . . Machines Sabotaged . | . . . Overloaded Fab Kills . | . . . Hacking | -11 -10 -9 --------- Run | Yrd Mat Mat Machines Accessed 13 | . 4 9 Terminals 11 | . 4 7 Fabricators . | . . . Repair Stations 1 | . . 1 Recycling Units 1 | . . 1 Scanalyzers . | . . . Garrison Access . | . . . Total Hacks 46 | . 15 31 Successful 18 | . 4 14 Failed 27 | . 10 17 Catastrophic 3 | . 2 1 Database Lockouts 1 | . 1 . Manual 36 | . 12 24 Terminals 39 | . 15 24 Fabricators . | . . . Repair Stations 2 | . . 2 Recycling Units 5 | . . 5 Scanalyzers . | . . . Garrison Access . | . . . Terminal Hacks 9 | . 3 6 Robot Analysis 1 | . 1 . Prototype ID Bank 2 | . 1 1 Emergency Access Points 1 | . 1 . Terminal Index 1 | . . 1 Alert Level 1 | . . 1 Hauler Manifests 1 | . . 1 Zone Layout 2 | . . 2 Fabricator Hacks . | . . . Repair Station Hacks 1 | . . 1 Scan Component 1 | . . 1 Recycling Unit Hacks . | . . . Scanalyzer . | . . . Garrison Access Hacks . | . . . Unauthorized Hacks 8 | . 1 7 Terminals 6 | . 1 5 Assimilate 2 | . . 2 Botnet 3 | . 1 2 Operators 1 | . . 1 Fabricators . | . . . Repair Stations . | . . . Recycling Units 2 | . . 2 Reject 1 | . . 1 Mask 1 | . . 1 Scanalyzers . | . . . Garrison Access . | . . . Data Cores Recovered . | . . . Used . | . . . Hacking Detections 13 | . 4 9 Full Trace Events . | . . . Feedback Events . | . . . Feedback Blocked . | . . . Robot Schematics Acquired . | . . . Robots Built . | . . . Authchips . | . . . Time . | . . . Total Robot Build Rating . | . . . Part Schematics Acquired . | . . . Parts Built . | . . . Authchips . | . . . Time . | . . . Total Part Build Rating . | . . . Parts Repaired . | . . . Time . | . . . Parts Recycled . | . . . Recycled Matter . | . . . Retrieved Matter . | . . . Retrieved Components . | . . . Parts Scanalyzed . | . . . Part Schematics Acquired . | . . . Parts Damaged . | . . . Bothacking | -11 -10 -9 ------------ Run | Yrd Mat Mat Used RIF Installer . | . . . Robots Hacked . | . . . Non-combat . | . . . Combat . | . . . Robot Hacks Applied . | . . . Relay Couplers Released . | . . . Fabnet Peak Effective % . | . . . Robots Rewired . | . . . Allies Hacked . | . . . Hacks Repelled . | . . . Allies | -11 -10 -9 -------- Run | Yrd Mat Mat Total Allies . | . . . Largest Group . | . . . Highest-Rated Group . | . . . Highest-Rated Ally . | . . . Total Orders . | . . . Ally Attacks . | . . . Total Damage . | . . . Kills . | . . . Allies Corrupted . | . . . Allies Melted . | . . . Intel | -11 -10 -9 ------- Run | Yrd Mat Mat Robot Analysis Total 1 | . 1 . Derelict Logs Recovered . | . . . Drone Launches . | . . . Drone Recoveries . | . . . Exploration | -11 -10 -9 ------------- Run | Yrd Mat Mat Turns Passed 2223 | 108 496 1619 Spaces Moved 1121 | 67 349 705 Core 5 | 5 . . Treads . | . . . Legs 1116 | 62 349 705 Wheels . | . . . Hover . | . . . Flight . | . . . Fastest Speed 50 | 50 120 120 Average Speed 119 | 114 120 120 Slowest Speed 120 | 120 120 120 Overloaded Moves . | . . . Propulsion Burnouts . | . . . Robots Hopped . | . . . Cave-ins Triggered . | . . . Exploration Rate (%) 37 | 3 61 48 Regions Visited 2 Branch Regions . Pre-discovered Areas . | . . . Known Exits Taken . | . . . Unknown Exits Taken 2 | 1 1 . Scrap Searched . | . . . Spaces Dug 4 | . 1 3 Terrain Destroyed 4 | . 1 3 Melee . | . . . Projectile 4 | . 1 3 AOE . | . . . Terrain Rammed . | . . . Walls Destroyed . | . . . Machines Disabled . | . . . Actions | -11 -10 -9 --------- Run | Yrd Mat Mat Total 1833 | 85 382 1366 Wait 558 | 2 9 547 Move 1119 | 66 348 705 Hop . | . . . Pick Up 17 | 3 3 11 Fast Attach 14 | 7 . 7 Attach 2 | . . 2 Detach . | . . . Swap 19 | 1 2 16 Drop 17 | . . 17 Fire 81 | 4 20 57 Melee . | . . . Ram . | . . . Kick 6 | 2 . 4 Crush . | . . . Escape Stasis . | . . . Rewire . | . . . Trap . | . . . Miscellaneous . | . . . Route ------- -11/Scrapyard -10/Materials (discovered 3 exits: *Mat x2 / [*Min]) -9/Materials (discovered 1 exit: [*Mat]) History --------- Turn | Location | Event 12 | -11/Scrapyard | Discovered new exit (range 15) 109 | -11/Scrapyard | Entered Materials 304 | -10/Materials | Build established: Mutant 333 | -10/Materials | Central database locked down 436 | -10/Materials | Discovered new exit (range 11) 487 | -10/Materials | Discovered new exit (range 12) 559 | -10/Materials | Discovered new exit (range 4) 605 | -10/Materials | Entered another Materials area 605 | -9/Materials | Evolved 2 slots: Propulsion x1, Utility x1 1014 | -9/Materials | Build established: Scavenger-Mutant 1921 | -9/Materials | Discovered new exit (range 15) 2224 | -9/Materials | Self-destructed Last Messages --------------- 02109_ T-07 Excavator is excavating. 02124_ U-05 Engineer lays Concrete. 02129_ M-13 Machinist repairs R-06 Scavenger. 02131_ U-05 Engineer lays Concrete. 02140_ Dropped Sml. Storage Unit. 02144_ K-01 Serf cleans the Matter Pump. 02151_ Destroyed Sensor Array. 02151_ W-16 Scout suffers critical hit (Meltdown). 02153_ K-01 Serf cleans the Matter Pump. 02155_ T-07 Excavator is excavating. 02156_ K-01 Serf cleans the Matter Pump. 02157_ U-05 Engineer lays Concrete. 02196_ Critical hit (Burn: +37). 02198_ G-47 Trooper destroyed. 02205_ W-16 Scout sends out distress signal. 02209_ G-34 Mercenary destroyed. 02220_ W-16 Scout sends out distress signal. 02221_ Imp. Ion Engine destroyed. 02221_ System corrupted by crushing effect (+1). 02221_ Knocked back. Map ----- +----------------------------------------------------+ | | | | | | | | | | | | | | | | | | | | | | | | | | | | | | | | | | | | | | | | | | | | | ??????????????????????###########????????????????? | | ??????????????????????# #????????????????? | | ??????????????????????# #????????????????? | | ??????????????????????# @ #????????????????? | | ??????????????????????# b #????????????????? | | ??????????????????????# #######??????????? | | ??????????????????????# = ##!!!!##?????????? | | ??????????????????????# *s*= #! !#?????????? | | ??????????????????????# g!%! # #?????????? | | ?????????????#############s###### ##????????? | | ?????????? r ^ #????????? | | ?????????? % #????????? | | ?????????????############^g""" """ ####????????? | | ????????????????????????# """ """ # ##??????? | | ????????????????????????# """ """ #??????? | | ????????????????????????# # ????????? | | ????????????????????????# # #???????? | | ????????????????????????###### ##?##????????? | | ?????????????????????????????# #????????????? | | ?????????????????????????????# #????????????? | | ?????????????????????????????# #????????????? | | ???????????????????????####### #????????????? | | ??????????????????????"" """ # #????????????? | | ?????????????????????""" """ # #????????????? | | ???????????????????# """ """ # #????????????? | | ???????????????????# + ###########??? | | ???????????????????# # # #??? | | ???????????????????# # # [ #??? | +----------------------------------------------------+ Best States ------------- Heat Dissipation 38 Energy Generation 12 Energy Capacity 265 Matter Stores 300 Matter Capacity 300 Sight Range 16 Terrain Scan Range 16 Terrain Scan Density 10 ECM Strength 1 Armor Coverage 150 Evasion (%) 55 Offensive Hacking 10 Item Schematics ----------------- None Robot Schematics ------------------ None Fabricated ------------ Nothing Alien Tech Used ----------------- None Achievements -------------- None Challenges ------------ None Game ------ Seed PhaseImpactDerivative Manual? 0 Play Time 00:19:05 Cumulative 29.4 hours Start 2024.03.25 @ 10:49:02 End 2024.03.26 @ 10:43:34 Sessions 3 Manual Loads 0 Difficulty Rogue Special Mode None Game No. 65 Rogue 65 Adventurer 0 Explorer 0 Win Type - Total 1 Types 1/0/0/0/0/0/0/0/0 Lore% 19 Gallery% 31 Achievement% 32 Wizard Run 0 Options --------- Layout 0 ASCII 0 Keyboard 0 Movement Numpad Keybinds 0 Fullscreen 1 Font 18/SmallcapsGlow Map View 76x50 Zoom Use 0% Tactical HUD 1 Map Filters NONE Filters NONE Steam 1 RUN: 55c64f8b-39ee-49bb-9866-c9fecd6c4d4b